bitfinex/quotes_BTCUSD_20250530
["timestamp","ask_amount","ask_price","bid_price","bid_amount"]
[1748587008611,0.24002488,105960.0,105950.0,4e-05]
[1748587008827,0.24102488,105960.0,105950.0,4e-05]
[1748587022395,0.22462488,105960.0,105950.0,0.38356]
[1748587022606,0.23992488,105960.0,105950.0,0.38356]
[1748587023037,0.23892488,105960.0,105950.0,0.38356]
[1748587023486,0.23792488,105960.0,105950.0,0.38356]
[1748587027425,0.19792488,105960.0,105950.0,0.38356]
[1748587028294,0.21679929,105960.0,105950.0,0.38356]
[1748587032247,0.21679929,105960.0,105950.0,0.38352]
[1748587033149,0.21679929,105960.0,105950.0,4e-05]
[1748587033386,0.21679929,105960.0,105950.0,0.38324]
[1748587034519,0.17679929,105960.0,105950.0,0.38324]
[1748587037644,0.17679929,105960.0,105950.0,0.29252]
[1748587038099,0.17679929,105960.0,105950.0,4e-05]
[1748587038100,0.24679929,105960.0,105950.0,4e-05]
[1748587039061,0.25582973,105960.0,105950.0,4e-05]
[1748587041751,0.25582811,105960.0,105950.0,4e-05]
[1748587048419,0.21582811,105960.0,105950.0,4e-05]
[1748587050292,0.21582451,105960.0,105950.0,4e-05]
[1748587051866,0.55582451,105960.0,105950.0,4e-05]
[1748587053183,0.54679929,105960.0,105950.0,4e-05]
[1748587053644,0.55582451,105960.0,105950.0,4e-05]
[1748587054118,0.64687846,105960.0,105950.0,4e-05]
[1748587054377,0.64687608,105960.0,105950.0,4e-05]
[1748587054587,0.63785324,105960.0,105950.0,4e-05]
[1748587054836,0.64687612,105960.0,105950.0,4e-05]
[1748587055981,0.64987612,105960.0,105950.0,4e-05]
[1748587056229,0.65287612,105960.0,105950.0,4e-05]
[1748587056883,0.31287612,105960.0,105950.0,4e-05]
[1748587057391,0.32415472,105960.0,105950.0,4e-05]
[1748587057624,0.31287612,105960.0,105950.0,4e-05]
[1748587057853,0.32415472,105960.0,105950.0,4e-05]
[1748587058313,0.30385324,105960.0,105950.0,4e-05]
[1748587058540,0.32414878,105960.0,105950.0,4e-05]
[1748587059053,0.66414878,105960.0,105950.0,4e-05]
[1748587060000,0.18882175,105920.0,105900.0,0.03034]
[1748587060244,0.19778119,105910.0,105900.0,0.09109395]
[1748587060474,0.19778119,105910.0,105900.0,4e-05]
[1748587060704,0.22898119,105910.0,105900.0,4e-05]
[1748587061655,0.22898119,105910.0,105900.0,0.0001325]
[1748587062548,0.22998119,105910.0,105900.0,0.0001325]
[1748587064406,0.67557599,105910.0,105900.0,0.0001325]
[1748587065484,0.67457599,105910.0,105900.0,0.0001325]
[1748587065942,0.67557599,105910.0,105900.0,0.0001325]
[1748587066176,0.67757599,105910.0,105900.0,0.0001325]
[1748587069414,0.74757599,105910.0,105900.0,0.0001325]
[1748587071269,0.75757599,105910.0,105900.0,0.0001325]
[1748587076612,1.24547599,105910.0,105900.0,0.0001325]
[1748587076849,1.25442883,105910.0,105900.0,0.0001325]
[1748587078677,1.25442406,105910.0,105900.0,0.0001325]
[1748587080259,0.58404095,105900.0,105890.0,0.0005]
[1748587080486,0.7658149,105900.0,105890.0,0.00054919]
[1748587080955,0.65769705,105900.0,105890.0,0.00054919]
[1748587081183,0.5383001,105900.0,105890.0,0.00054919]
[1748587084017,0.1983001,105900.0,105890.0,0.00054919]
[1748587088526,0.2301001,105900.0,105890.0,0.00054919]
[1748587090328,0.2145001,105900.0,105890.0,0.00054919]
[1748587090547,0.22349486,105900.0,105890.0,0.00054919]
[1748587091234,0.20729486,105900.0,105890.0,0.00054919]
[1748587092994,0.20729486,105900.0,105890.0,0.03124919]
[1748587093438,0.1983001,105900.0,105890.0,0.03124919]
[1748587098512,0.1983001,105900.0,105890.0,0.00054919]
[1748587098737,0.28935405,105900.0,105890.0,0.00054919]
[1748587098965,0.66906653,105900.0,105890.0,0.00054919]
[1748587099190,0.68033213,105900.0,105890.0,0.00054919]
[1748587099406,0.70867513,105900.0,105890.0,0.00054919]
[1748587101200,0.69740953,105900.0,105890.0,0.00054919]
[1748587101495,0.70866944,105900.0,105890.0,0.00054919]
[1748587104410,0.72321029,105900.0,105890.0,0.00054919]
[1748587105570,0.7029379,105900.0,105890.0,0.00054919]
[1748587105796,0.72321434,105900.0,105890.0,0.00054919]
[1748587107633,0.70867349,105900.0,105890.0,0.00054919]
[1748587107904,0.54731185,105900.0,105890.0,0.00054919]
[1748587108134,0.20731185,105900.0,105890.0,0.00054919]
[1748587108379,0.1983001,105900.0,105890.0,0.03234919]
[1748587111313,0.1983001,105900.0,105890.0,0.01614919]
[1748587111545,0.1983001,105900.0,105890.0,0.00054919]
[1748587111786,0.2144001,105900.0,105890.0,0.00054919]
[1748587112031,0.2305001,105900.0,105890.0,0.00054919]
[1748587112958,0.2345001,105900.0,105890.0,0.00054919]
[1748587122062,0.24351254,105900.0,105890.0,0.00054919]
[1748587122297,0.24351176,105900.0,105890.0,0.00054919]
[1748587122992,0.67456571,105900.0,105890.0,0.00054919]
[1748587123215,0.70037113,105900.0,105890.0,0.00054919]
[1748587124375,0.69837113,105900.0,105890.0,0.00054919]
[1748587124615,0.69637113,105900.0,105890.0,0.00054919]
[1748587124831,0.70037113,105900.0,105890.0,0.00054919]
[1748587125051,0.70437113,105900.0,105890.0,0.00154919]
[1748587126377,0.70437055,105900.0,105890.0,0.00154919]
[1748587129985,0.73271555,105900.0,105890.0,0.00154919]
[1748587130203,0.6898297,105900.0,105890.0,0.00154919]
[1748587131986,0.5875115,105900.0,105890.0,0.00154919]
[1748587134405,0.70437055,105900.0,105890.0,0.00154919]
[1748587134635,0.79501055,105900.0,105890.0,0.00154919]
[1748587134880,0.86010684,105900.0,105890.0,0.00154919]
[1748587135109,0.89221671,105900.0,105890.0,0.00154919]
[1748587135330,0.81004266,105900.0,105890.0,0.00154919]
[1748587138908,0.81003926,105900.0,105890.0,0.00154919]
[1748587141602,0.81003994,105900.0,105890.0,0.00154919]
[1748587144872,0.83838494,105900.0,105890.0,0.00154919]
[1748587145822,0.83838504,105900.0,105890.0,0.00154919]
[1748587146954,0.85894284,105900.0,105890.0,0.00154919]
[1748587147184,0.89220349,105900.0,105890.0,0.00154919]
[1748587149767,0.92401392,105900.0,105890.0,0.00154919]
[1748587150015,0.89219166,105900.0,105890.0,0.00154919]
[1748587152061,0.90219166,105900.0,105890.0,0.00154919]
[1748587152715,0.89219166,105900.0,105890.0,0.00154919]
[1748587154838,0.89219166,105900.0,105880.0,4e-05]
[1748587154839,0.92002903,105900.0,105880.0,4e-05]
[1748587155078,0.33433466,105890.0,105880.0,4e-05]
[1748587155330,0.42430615,105890.0,105880.0,4e-05]
[1748587155819,0.39248926,105890.0,105880.0,4e-05]
[1748587156056,0.45004741,105890.0,105880.0,4e-05]
[1748587156291,0.35924741,105890.0,105880.0,4e-05]
[1748587156532,0.45004741,105890.0,105880.0,4e-05]
[1748587156768,0.45304741,105890.0,105880.0,4e-05]
[1748587157003,0.52304741,105890.0,105880.0,4e-05]
[1748587157704,0.52704741,105890.0,105880.0,4e-05]
[1748587157959,0.51803466,105890.0,105880.0,4e-05]
[1748587158189,0.52704445,105890.0,105880.0,4e-05]
[1748587160293,0.55539445,105890.0,105880.0,4e-05]
[1748587162415,0.55539343,105890.0,105880.0,4e-05]
[1748587163115,0.56665623,105890.0,105880.0,4e-05]
[1748587164006,0.55539343,105890.0,105880.0,4e-05]
[1748587164477,0.56665808,105890.0,105880.0,4e-05]
[1748587165544,0.46459343,105890.0,105880.0,4e-05]
[1748587165808,0.56665968,105890.0,105880.0,4e-05]
[1748587166448,0.56666361,105890.0,105880.0,4e-05]
[1748587168564,0.55539753,105890.0,105880.0,4e-05]
[1748587169004,0.58863814,105890.0,105880.0,4e-05]
[1748587169223,0.62045052,105890.0,105880.0,4e-05]
[1748587169900,0.56234223,105870.0,105860.0,4e-05]
[1748587170118,0.68499618,105870.0,105860.0,4e-05]
[1748587170556,0.7246165,105870.0,105860.0,4e-05]
[1748587170780,0.74489125,105870.0,105860.0,4e-05]
[1748587171209,0.76364759,105870.0,105860.0,4e-05]
[1748587171428,0.76464759,105870.0,105860.0,4e-05]
[1748587171638,0.75338127,105870.0,105860.0,4e-05]
[1748587171824,0.73462493,105870.0,105860.0,4e-05]
[1748587172040,0.82542493,105870.0,105860.0,4e-05]
[1748587172811,0.82642493,105870.0,105860.0,4e-05]
[1748587173270,0.5941815,105850.0,105840.0,0.0158887]
[1748587173517,0.80434116,105850.0,105840.0,0.0158887]
[1748587173945,0.72660116,105850.0,105840.0,0.0158887]
[1748587174174,0.65916361,105850.0,105840.0,0.0470887]
[1748587174389,0.20784065,105850.0,105840.0,0.0470887]
[1748587174599,0.20784065,105850.0,105840.0,0.0480887]
[1748587174811,0.20798705,105850.0,105840.0,0.0470887]
[1748587175244,0.20898705,105850.0,105840.0,0.0470887]
[1748587176735,0.20898705,105850.0,105840.0,0.0480887]
[1748587178741,0.20898705,105850.0,105840.0,0.0168887]
[1748587179605,0.20898705,105850.0,105840.0,0.0169287]
[1748587180444,0.24038705,105850.0,105840.0,0.0169287]
[1748587180680,0.58038705,105850.0,105840.0,0.0169287]
[1748587181344,0.65038705,105850.0,105840.0,0.0169287]
[1748587181562,0.75108806,105850.0,105840.0,0.0169287]
[1748587182049,0.77462767,105850.0,105840.0,0.0169287]
[1748587182275,0.70462767,105850.0,105840.0,0.0169287]
[1748587183594,0.69562891,105850.0,105840.0,0.0169287]
[1748587184278,0.8630715,105850.0,105840.0,0.0169287]
[1748587184499,0.87206516,105850.0,105840.0,0.0169287]
[1748587184716,0.90042516,105850.0,105840.0,0.0169287]
[1748587184985,0.91166724,105850.0,105840.0,0.0169287]
[1748587185191,0.91066724,105850.0,105840.0,0.0169287]
[1748587185617,0.83470465,105850.0,105840.0,0.0169287]
[1748587185831,0.82346257,105850.0,105840.0,0.0169287]
[1748587186070,0.82646257,105850.0,105840.0,0.0169287]
[1748587186294,0.88746891,105850.0,105840.0,0.0159287]
[1748587186510,0.88946891,105850.0,105840.0,0.0159287]
[1748587186929,0.81946891,105850.0,105840.0,0.0159287]
[1748587187979,0.81646891,105850.0,105840.0,0.0159287]
[1748587188219,0.83071099,105850.0,105840.0,0.0159287]
[1748587188436,0.81946891,105850.0,105840.0,0.0159287]
[1748587190013,0.68204806,105850.0,105840.0,0.0159287]
[1748587190250,0.65368806,105850.0,105840.0,0.0159287]
[1748587191342,0.72368806,105850.0,105840.0,0.0159287]
[1748587192189,0.73968806,105850.0,105840.0,0.0159287]
[1748587192673,0.72368806,105850.0,105840.0,0.0159287]
[1748587193317,0.73928806,105850.0,105840.0,0.0159287]
[1748587193533,0.72368806,105850.0,105840.0,0.0159287]
[1748587194847,0.65368806,105850.0,105840.0,0.0159287]
[1748587195068,0.55298705,105850.0,105840.0,0.0481287]
[1748587195326,0.21298705,105850.0,105840.0,0.0481287]
[1748587195553,0.21298705,105850.0,105840.0,0.44054753]
[1748587195768,0.21298741,105850.0,105840.0,0.53160148]
[1748587195986,0.20054026,105850.0,105840.0,0.53160148]
[1748587196422,0.19854026,105850.0,105840.0,0.52586265]
[1748587196631,0.19854026,105850.0,105840.0,0.52786265]
[1748587196841,0.19854026,105850.0,105840.0,0.91828148]
[1748587197258,0.20054026,105850.0,105840.0,0.92228148]
[1748587197712,0.19954026,105850.0,105840.0,0.92128148]
[1748587198141,0.20054026,105850.0,105840.0,0.92228148]
[1748587198576,0.20054026,105850.0,105840.0,0.52986265]
[1748587199717,0.20054026,105850.0,105840.0,0.23470265]
[1748587199918,0.20054026,105850.0,105840.0,0.52974265]
[1748587200370,0.20054026,105850.0,105840.0,0.14318265]
[1748587200590,0.20054026,105850.0,105840.0,0.52962265]
[1748587204359,0.20054026,105850.0,105840.0,0.14318265]
[1748587204598,0.20054026,105850.0,105840.0,0.43826265]
[1748587205244,0.20054026,105850.0,105840.0,0.14318265]
[1748587205414,0.20054026,105850.0,105840.0,0.43870265]
[1748587208170,0.20054026,105850.0,105840.0,0.83112148]
[1748587210572,0.20054026,105850.0,105840.0,0.43870265]
[1748587211194,0.20998723,105850.0,105840.0,0.83112148]
[1748587211645,0.20998723,105850.0,105840.0,0.43870265]
[1748587212729,0.20998723,105850.0,105840.0,0.53150265]
[1748587212970,0.20998723,105850.0,105840.0,0.53146265]
[1748587215708,0.20998723,105850.0,105840.0,0.53122265]
[1748587219131,0.20998723,105850.0,105840.0,0.53118265]
[1748587219558,0.20998723,105850.0,105840.0,0.49898265]
[1748587220971,0.20998723,105850.0,105840.0,0.52938265]
[1748587223293,0.20998723,105850.0,105840.0,0.20330265]
[1748587223536,0.20998723,105850.0,105840.0,0.49854265]
[1748587223755,0.20998723,105850.0,105840.0,0.49850265]
[1748587231205,0.20998723,105850.0,105840.0,0.49800265]
[1748587231892,0.20998723,105850.0,105840.0,0.49784265]
[1748587233067,0.24198723,105850.0,105840.0,0.49784265]
[1748587233434,0.24198723,105850.0,105840.0,0.0198487]
[1748587233649,0.24198723,105850.0,105840.0,0.3147687]
[1748587233869,0.24198723,105850.0,105840.0,0.0198487]
[1748587234079,0.25101515,105850.0,105840.0,0.3147687]
[1748587234327,0.25101515,105850.0,105840.0,0.3150487]
[1748587235021,0.25000717,105850.0,105840.0,0.3140487]
[1748587235221,0.25100717,105850.0,105840.0,0.3150487]
[1748587235419,0.25000717,105850.0,105840.0,0.3120487]
[1748587235620,0.25000717,105850.0,105840.0,0.0168487]
[1748587235896,0.24098723,105850.0,105840.0,0.3130087]
[1748587236091,0.25000368,105850.0,105840.0,0.3130087]
[1748587236537,0.24900368,105850.0,105840.0,0.3120087]
[1748587236747,0.25100368,105850.0,105840.0,0.3120087]
[1748587237437,0.24198723,105850.0,105840.0,0.3120087]
[1748587238713,0.24198723,105850.0,105840.0,0.0168487]
[1748587238931,0.24198723,105850.0,105840.0,0.3117687]
[1748587240098,0.24198723,105850.0,105840.0,0.0168487]
[1748587244443,0.22618723,105850.0,105840.0,0.0168487]
[1748587244676,0.20998723,105850.0,105840.0,0.0332487]
[1748587244914,0.20998723,105850.0,105840.0,0.61108333]
[1748587245140,0.20998723,105850.0,105840.0,0.23220265]
[1748587245817,0.20798723,105850.0,105840.0,0.10690265]
[1748587246046,0.24098723,105850.0,105840.0,0.0188487]
[1748587246261,0.24098723,105850.0,105840.0,0.3138087]
[1748587246928,0.24098723,105850.0,105840.0,0.3137687]
[1748587247586,0.24098723,105850.0,105840.0,0.0188487]
[1748587247841,0.24098723,105850.0,105840.0,0.3139287]
[1748587248241,0.24098723,105850.0,105840.0,0.0188487]
[1748587248460,0.24098723,105850.0,105840.0,0.3138487]
[1748587250659,0.20998723,105850.0,105840.0,0.3138487]
[1748587251748,0.24228723,105850.0,105840.0,0.0188487]
[1748587251966,0.34163046,105850.0,105840.0,0.0188487]
[1748587252201,0.31824982,105850.0,105840.0,0.0188487]
[1748587252657,0.34660482,105850.0,105840.0,0.0188487]
[1748587252880,0.33964223,105850.0,105840.0,0.0178487]
[1748587253309,0.34164223,105850.0,105840.0,0.0178487]
[1748587254200,0.34064223,105850.0,105840.0,0.0158487]
[1748587254635,0.34064223,105850.0,105840.0,0.0168487]
[1748587255577,0.31228723,105850.0,105840.0,0.0168487]
[1748587256224,0.27998723,105850.0,105840.0,0.0168487]
[1748587256904,0.27998723,105850.0,105840.0,0.3198887]
[1748587257756,0.20998723,105850.0,105840.0,0.3198887]
[1748587257977,0.24188723,105850.0,105840.0,0.3198887]
[1748587261462,0.24188723,105850.0,105840.0,0.0168487]
[1748587261692,0.24188723,105850.0,105840.0,0.4162487]
[1748587261928,0.24188723,105850.0,105840.0,0.0168487]
[1748587262136,0.24188723,105850.0,105840.0,0.4164487]
[1748587262344,0.24188723,105850.0,105840.0,0.0168487]
[1748587262562,0.6668591,105850.0,105840.0,0.0168487]
[1748587263026,0.59089651,105850.0,105840.0,0.3209287]
[1748587263290,0.66089651,105850.0,105840.0,0.3209287]
[1748587263511,0.68925051,105850.0,105840.0,0.3209287]
[1748587264350,0.68925051,105850.0,105840.0,0.3214487]
[1748587265687,0.68925287,105850.0,105840.0,0.3214487]
[1748587266870,0.68725287,105850.0,105840.0,0.3204487]
[1748587267303,0.69125287,105850.0,105840.0,0.3204487]
[1748587270138,0.69125287,105850.0,105840.0,0.0158487]
[1748587270605,0.70251743,105850.0,105840.0,0.0158487]
[1748587270606,0.69350579,105850.0,105840.0,0.0158487]
[1748587271025,0.70476775,105850.0,105840.0,0.0158487]
[1748587271027,0.70251276,105850.0,105840.0,0.0158487]
[1748587271225,0.70251276,105850.0,105840.0,0.01403942]
[1748587271462,0.6912508,105850.0,105840.0,0.01403942]
[1748587273465,0.70251276,105850.0,105840.0,0.01403942]
[1748587273877,0.6912508,105850.0,105840.0,0.01403942]
[1748587274807,0.68224123,105850.0,105840.0,0.01403942]
[1748587275062,0.69124837,105850.0,105840.0,0.01403942]
[1748587275456,0.70250729,105850.0,105840.0,0.01403942]
[1748587278854,0.80810209,105850.0,105840.0,0.01403942]
[1748587279076,0.82312385,105850.0,105840.0,0.01403942]
[1748587279308,0.82312682,105850.0,105840.0,0.01403942]
[1748587279509,0.88819254,105850.0,105840.0,0.01403942]
[1748587279728,0.82312682,105850.0,105840.0,0.01403942]
[1748587281278,0.80858597,105850.0,105840.0,0.01403942]
[1748587281504,0.79356421,105850.0,105840.0,0.01403942]
[1748587283338,0.80810506,105850.0,105840.0,0.01403942]
[1748587283545,0.8171072,105850.0,105840.0,0.01403942]
[1748587283681,0.8231205,105850.0,105840.0,0.01403942]
[1748587286976,0.80809874,105850.0,105840.0,0.01403942]
[1748587287633,0.80809739,105850.0,105840.0,0.01403942]
[1748587288466,0.82311915,105850.0,105840.0,0.01403942]
[1748587289084,0.91359895,105850.0,105840.0,0.01403942]
[1748587289325,0.87686593,105850.0,105840.0,0.01403942]
[1748587289977,0.56242078,105830.0,105820.0,4e-05]
[1748587290202,0.69507978,105830.0,105820.0,4e-05]
[1748587290618,0.72344278,105830.0,105820.0,4e-05]
[1748587290833,0.73469889,105830.0,105820.0,4e-05]
[1748587291460,0.73769889,105830.0,105820.0,4e-05]
[1748587291867,0.75641103,105830.0,105820.0,4e-05]
[1748587292075,0.76540879,105830.0,105820.0,4e-05]
[1748587292290,0.76640879,105830.0,105820.0,4e-05]
[1748587292689,0.75740374,105830.0,105820.0,4e-05]
[1748587295086,0.75739432,105830.0,105820.0,4e-05]
[1748587296318,0.74839582,105830.0,105820.0,4e-05]
[1748587296533,0.75739258,105830.0,105820.0,4e-05]
[1748587297807,0.92586639,105830.0,105820.0,4e-05]
[1748587298035,0.952146,105830.0,105820.0,4e-05]
[1748587298465,0.94087655,105830.0,105820.0,4e-05]
[1748587299125,0.92963478,105830.0,105820.0,4e-05]
[1748587299539,0.94087532,105830.0,105820.0,4e-05]
[1748587299973,0.92963478,105830.0,105820.0,4e-05]
[1748587300602,0.92063802,105830.0,105820.0,4e-05]
[1748587300798,0.92962849,105830.0,105820.0,4e-05]
[1748587301955,0.94086582,105830.0,105820.0,4e-05]
[1748587306114,0.87086582,105830.0,105820.0,4e-05]
[1748587307393,0.75784497,105830.0,105820.0,4e-05]
[1748587307604,0.74283682,105830.0,105820.0,4e-05]
[1748587307836,0.75737767,105830.0,105820.0,4e-05]
[1748587308454,0.82737767,105830.0,105820.0,4e-05]
[1748587309297,0.82738543,105830.0,105820.0,4e-05]
[1748587310441,0.80867329,105830.0,105820.0,4e-05]
[1748587310656,0.79413244,105830.0,105820.0,4e-05]
[1748587313566,0.79414466,105830.0,105820.0,4e-05]
[1748587314656,0.78289589,105830.0,105820.0,4e-05]
[1748587315539,0.79414466,105830.0,105820.0,4e-05]
[1748587319551,0.80868551,105830.0,105820.0,4e-05]
[1748587319769,0.82369366,105830.0,105820.0,4e-05]
[1748587320418,0.81244489,105830.0,105820.0,4e-05]
[1748587321700,0.81244489,105830.0,105790.0,0.33734]
[1748587321701,0.19848752,105800.0,105790.0,0.31742]
[1748587322763,0.19848752,105800.0,105790.0,0.31746]
[1748587322976,0.19948752,105800.0,105790.0,0.31746]
[1748587323212,0.19963381,105800.0,105790.0,0.31746]
[1748587323656,0.20063381,105800.0,105790.0,0.32146]
[1748587324820,0.20063381,105800.0,105790.0,0.32806]
[1748587325043,0.03050085,105800.0,105790.0,1.06079883]
[1748587325261,0.21008551,105800.0,105790.0,1.06079883]
[1748587325700,0.21008551,105800.0,105790.0,0.66838]
[1748587325928,0.21008551,105800.0,105790.0,1.15185278]
[1748587326155,0.21008551,105800.0,105790.0,0.75943395]
[1748587326376,0.21008551,105800.0,105790.0,1.15185278]
[1748587326591,0.21008551,105800.0,105790.0,0.75943395]
[1748587326903,0.21008551,105800.0,105790.0,1.15185278]
[1748587327122,0.00214629,105800.0,105790.0,1.15185278]
[1748587327345,0.02104906,105800.0,105790.0,1.37026354]
[1748587327553,0.04940336,105800.0,105790.0,1.37026354]
[1748587327763,0.22898828,105800.0,105790.0,1.36081148]
[1748587327982,0.02104942,105800.0,105790.0,1.36081148]
[1748587328193,0.00214629,105800.0,105790.0,1.37026354]
[1748587328405,0.01159728,105800.0,105790.0,2.04434054]
[1748587328659,0.00214629,105800.0,105790.0,2.05888139]
[1748587329591,0.00114629,105800.0,105790.0,2.05888139]
[1748587329833,0.00214629,105800.0,105790.0,2.05888139]
[1748587330072,0.00114629,105800.0,105790.0,2.05488139]
[1748587330283,0.00214629,105800.0,105790.0,2.05988139]
[1748587331426,0.00214629,105800.0,105790.0,2.45988139]
[1748587332153,0.01159728,105800.0,105790.0,2.45988139]
[1748587332381,0.03049961,105800.0,105790.0,2.08112539]
[1748587332836,0.03995113,105800.0,105790.0,1.98315239]
[1748587333061,0.03995104,105800.0,105790.0,1.91445239]
[1748587333302,0.03049961,105800.0,105790.0,1.91445239]
[1748587333534,0.01159737,105800.0,105790.0,1.91541239]
[1748587334665,0.02104862,105800.0,105790.0,1.91541239]
[1748587334907,0.03050005,105800.0,105790.0,1.91541239]
[1748587335134,0.03995148,105800.0,105790.0,1.60825239]
[1748587335349,0.03049996,105800.0,105790.0,1.39418556]
[1748587335560,0.03995148,105800.0,105790.0,1.88935139]
[1748587335774,0.03995148,105800.0,105790.0,1.78660439]
[1748587335984,0.03995148,105800.0,105790.0,1.90352439]
[1748587337680,0.04940309,105800.0,105790.0,1.90352439]
[1748587339638,0.21008533,105800.0,105790.0,1.55417278]
[1748587340734,0.21008533,105800.0,105790.0,1.56362546]
[1748587341019,0.21008533,105800.0,105790.0,1.57307805]
[1748587341238,0.00214629,105800.0,105790.0,3.81690358]
[1748587341653,0.00214629,105800.0,105790.0,3.84525858]
[1748587343777,0.00214629,105800.0,105790.0,7.23034158]
[1748587344204,0.00214629,105800.0,105790.0,7.22934158]
[1748587344638,0.00214629,105800.0,105790.0,6.03155375]
[1748587344850,0.00214629,105800.0,105790.0,4.30141458]
[1748587345675,0.00214629,105800.0,105790.0,2.17948458]
[1748587345903,0.00214629,105800.0,105790.0,7.22934158]
[1748587346347,0.00214629,105800.0,105790.0,6.20402658]
[1748587346560,0.00214629,105800.0,105790.0,5.56922158]
[1748587346953,0.00214629,105800.0,105790.0,5.85086158]
[1748587347394,0.00214629,105800.0,105790.0,6.10232558]
[1748587347572,0.00214629,105800.0,105790.0,6.06624658]
[1748587347797,0.01159737,105800.0,105790.0,2.43464875]
[1748587347982,0.00214629,105800.0,105790.0,3.52770458]
[1748587348158,0.00214629,105800.0,105790.0,3.47770458]
[1748587348377,0.00214629,105800.0,105790.0,3.44818258]
[1748587348578,0.00214629,105800.0,105790.0,3.39818258]
[1748587349000,0.00214629,105800.0,105790.0,3.63766858]
[1748587349411,0.01159728,105800.0,105790.0,3.49815758]
[1748587349609,0.0304997,105800.0,105790.0,2.23682575]
[1748587349826,0.03995131,105800.0,105790.0,2.33074058]
[1748587350032,0.03995131,105800.0,105790.0,2.30304773]
[1748587350439,0.0494031,105800.0,105790.0,1.89816791]
[1748587350649,0.21008515,105800.0,105790.0,1.23991395]
[1748587350870,0.21008515,105800.0,105790.0,1.54623395]
[1748587350871,0.22528515,105800.0,105790.0,1.54623395]
[1748587351068,0.22528515,105800.0,105790.0,1.23991395]
[1748587351265,0.22528515,105800.0,105790.0,1.54623395]
[1748587351701,0.24158515,105800.0,105790.0,1.24913395]
[1748587351896,0.24158515,105800.0,105790.0,1.25858663]
[1748587352327,0.22528515,105800.0,105790.0,1.44764041]
[1748587352538,0.21583381,105800.0,105790.0,1.44764041]
[1748587354273,0.04570094,105800.0,105790.0,1.85896381]
[1748587354473,0.00214629,105800.0,105790.0,2.50848287]
[1748587354719,0.02104836,105800.0,105790.0,2.06566687]
[1748587354933,0.03995104,105800.0,105790.0,2.06686687]
[1748587355353,0.04940265,105800.0,105790.0,1.88435587]
[1748587355559,0.03995104,105800.0,105790.0,1.88435587]
[1748587355770,0.04940256,105800.0,105790.0,1.88435587]
[1748587356192,0.04940256,105800.0,105790.0,2.28435587]
[1748587356606,0.04940256,105800.0,105790.0,2.43117287]
[1748587356810,0.04940256,105800.0,105790.0,2.41487287]
[1748587357017,0.04940318,105800.0,105790.0,2.26805587]
[1748587357223,0.03995157,105800.0,105790.0,2.41487287]
[1748587357424,0.03995157,105800.0,105790.0,2.26805587]
[1748587357688,0.03995157,105800.0,105790.0,2.56515587]
[1748587357880,0.03995157,105800.0,105790.0,2.71147287]
[1748587358083,0.03995157,105800.0,105790.0,2.30339287]
[1748587358204,0.03995157,105800.0,105790.0,1.91097404]
[1748587359581,0.01159737,105800.0,105790.0,1.91097404]
[1748587360652,0.24038533,105800.0,105790.0,1.32680773]
[1748587360875,0.24038533,105800.0,105790.0,1.03979248]
[1748587361092,0.05134942,105800.0,105790.0,1.36461669]
[1748587361303,0.05134889,105800.0,105790.0,1.36461669]
[1748587361536,0.0608005,105800.0,105790.0,1.05869669]
[1748587361759,0.24983641,105800.0,105790.0,1.33634032]
[1748587361976,0.24983641,105800.0,105790.0,1.35524498]
[1748587362216,0.24983641,105800.0,105790.0,1.36469713]
[1748587362398,0.0608005,105800.0,105790.0,1.37414919]
[1748587363069,0.06080041,105800.0,105790.0,1.37414919]
[1748587363269,0.07025211,105800.0,105790.0,1.37414919]
[1748587363512,0.07025211,105800.0,105790.0,1.07704919]
[1748587363935,0.06080041,105800.0,105790.0,1.07704919]
[1748587365004,0.06080041,105800.0,105790.0,1.05814498]
[1748587365265,0.06080041,105800.0,105790.0,1.06759704]
[1748587365482,0.06080041,105800.0,105790.0,1.05814498]
[1748587365785,0.06080041,105800.0,105790.0,1.06759704]
[1748587366005,0.06080041,105800.0,105790.0,1.05814498]
[1748587366209,0.06080041,105800.0,105790.0,1.06759704]
[1748587367008,0.25928811,105800.0,105790.0,1.05814498]
[1748587367227,0.25928811,105800.0,105790.0,1.04849274]
[1748587367446,0.24983694,105800.0,105790.0,1.04849274]
[1748587367880,0.24983694,105800.0,105790.0,1.05794507]
[1748587368084,0.24983694,105800.0,105790.0,1.05744507]
[1748587368290,0.24983694,105800.0,105790.0,1.04799274]
[1748587368508,0.2403856,105800.0,105790.0,0.73274032]
[1748587368724,0.23093399,105800.0,105790.0,1.03866032]
[1748587369146,0.23093399,105800.0,105790.0,0.64351274]
[1748587369353,0.23093399,105800.0,105790.0,1.03866032]
[1748587369562,0.23093399,105800.0,105790.0,1.04811283]
[1748587370228,0.24038551,105800.0,105790.0,1.05756516]
[1748587370465,0.24038551,105800.0,105790.0,1.05756525]
[1748587372817,0.24038551,105800.0,105790.0,1.06701758]
[1748587373628,0.24038551,105800.0,105790.0,1.05756525]
[1748587374559,0.24038551,105800.0,105790.0,1.03866032]
[1748587374981,0.24038551,105800.0,105790.0,1.05756507]
[1748587375197,0.24038551,105800.0,105790.0,1.04811283]
[1748587375405,0.23093399,105800.0,105790.0,1.04811283]
[1748587376048,0.04189781,105800.0,105790.0,1.05756507]
[1748587376299,0.07025246,105800.0,105790.0,1.05756507]
[1748587376956,0.06080067,105800.0,105790.0,1.06701713]
[1748587377165,0.07025246,105800.0,105790.0,1.06701713]
[1748587377422,0.07025237,105800.0,105790.0,1.06701722]
[1748587377631,0.07970416,105800.0,105790.0,1.06701722]
[1748587377832,0.07970416,105800.0,105790.0,1.06651722]
[1748587378529,0.07025291,105800.0,105790.0,1.06651722]
[1748587379550,0.25928882,105800.0,105790.0,1.05706507]
[1748587379777,0.2498373,105800.0,105790.0,1.05706507]
[1748587380363,0.24038569,105800.0,105790.0,1.04761283]
[1748587380797,0.05134978,105800.0,105790.0,1.05706525]
[1748587381022,0.06080059,105800.0,105790.0,1.0665174]
[1748587381244,0.0513496,105800.0,105790.0,1.06651758]
[1748587381473,0.24038551,105800.0,105790.0,1.06651758]
[1748587381723,0.23093399,105800.0,105790.0,1.06651758]
[1748587381942,0.23093399,105800.0,105790.0,1.05706525]
[1748587382192,0.04189737,105800.0,105790.0,1.06651758]
[1748587382447,0.03049997,105800.0,105790.0,1.18101764]
[1748587383156,0.04559988,105800.0,105790.0,1.18101764]
[1748587383379,0.06450301,105800.0,105790.0,1.18101764]
[1748587383873,0.23463703,105800.0,105790.0,1.04761283]
[1748587384107,0.23463703,105800.0,105790.0,0.43505395]
[1748587384108,0.24068551,105800.0,105790.0,0.43505395]
[1748587384338,0.24068551,105800.0,105790.0,0.84954663]
[1748587385320,0.24068551,105800.0,105790.0,0.85899922]
[1748587385527,0.24068551,105800.0,105790.0,1.048053]
[1748587385789,0.24068551,105800.0,105790.0,1.05750551]
[1748587386021,0.24068551,105800.0,105790.0,1.048053]
[1748587386252,0.2312339,105800.0,105790.0,0.53385395]
[1748587386465,0.2217822,105800.0,105790.0,0.84009395]